[Event "GER-ch Youth-U10 2022"]
[Site "Willingen"]
[Date "2022.06.10"]
[Round "9.16"]
[White "Rohatgi, Kushagra"]
[Black "Heitmann, Erik"]
[Result "1-0"]
[ECO "B90"]
[WhiteElo "1222"]
[BlackElo "1287"]
[Annotator "NA RC COMBH"]
[PlyCount "97"]
[EventDate "2022.06.05"]
[EventType "swiss"]
[EventRounds "11"]
[EventCountry "GER"]
[SourceTitle "playchess.com"]
[Source "ChessBase"]
[SourceQuality "1"]
[TimeControl "40/4500+30:900+30"]

1. e4 {[%emt 0:00:04]} c5 {[%emt 0:00:08]} 2. Nf3 {[%emt 0:00:06]} d6 {[%emt 0:00:26]} 3. d4 {[%emt 0:00:12]} cxd4 {[%emt 0:00:40]} 4. Nxd4 {[%emt 0:00:28]} Nf6 {[%emt 0:00:14]} 5. Nc3 {[%emt 0:00:12]} a6 {[%emt 0:00:47]} 6. Be3 {[%emt 0:00:24]} e5 {[%emt 0:00:19]} 7. Nf3 {[%emt 0:00:07]} Be7 {[%emt 0:00:41]} 8. Bc4 {[%emt 0:00:12]} O-O {[%emt 0:00:40]} 9. O-O {[%emt 0:00:24]} b5 {[%emt 0:00:20]} 10. Bd5 {[%emt 0:00:17]} Nxd5 {[%emt 0:00:15]} 11. Qxd5 {[%emt 0:00:31]} Qd7 {[%emt 0:00:22]} 12. Qxa8 {[%emt 0:03:02]} Nc6 {[%emt 0:00:10]} 13. Nd5 {[%emt 0:02:58]} Bb7 {[%emt 0:00:58]} 14. Nxe7+ {[%emt 0:04:06]} Qxe7 {[%emt 0:00:38]} 15. Qxf8+ {[%emt 0:00:25]} Kxf8 {[%emt 0:00:07]} 16. c3 {[%emt 0:01:24]} Na5 {[%emt 0:05:49]} 17. Nd2 {[%emt 0:04:35]} d5 {[%emt 0:00:40]} 18. b4 {[%emt 0:01:05]} Nc4 {[%emt 0:01:33]} 19. Nxc4 {[%emt 0:00:36]} dxc4 {[%emt 0:00:31]} 20. Bc5 {[%emt 0:00:16]} Bxe4 {[%emt 0:00:43]} 21. Bxe7+ {[%emt 0:00:20]} Kxe7 {[%emt 0:00:09]} 22. Rfe1 {[%emt 0:00:21]} f5 {[%emt 0:00:25]} 23. f3 {[%emt 0:00:25]} Bd3 {[%emt 0:00:08]} 24. Rxe5+ {[%emt 0:00:38]} Kf6 {[%emt 0:00:05]} 25. Ree1 {[%emt 0:00:54]} g5 {[%emt 0:00:07]} 26. Rad1 {[%emt 0:00:47]} f4 {[%emt 0:00:12]} 27. Rxd3 {[%emt 0:02:08]} cxd3 {[%emt 0:00:23]} 28. Rd1 {[%emt 0:00:13]} Ke5 {[%emt 0:00:09]} 29. Rxd3 {[%emt 0:00:09]} h5 {[%emt 0:00:05]} 30. Rd1 {[%emt 0:00:32]} h4 {[%emt 0:00:09]} 31. h3 {[%emt 0:00:24]} Kf5 {[%emt 0:00:17]} 32. Rd6 {[%emt 0:00:33]} Ke5 {[%emt 0:00:14]} 33. Rxa6 {[%emt 0:00:08]} Kd5 {[%emt 0:00:13]} 34. Ra5 {[%emt 0:00:32]} Kc6 {[%emt 0:00:09]} 35. Kf2 {[%emt 0:00:24]} Kb6 {[%emt 0:00:08]} 36. Ke2 {[%emt 0:00:27]} Kc6 {[%emt 0:00:15]} 37. Kd3 {[%emt 0:00:15]} Kb6 {[%emt 0:00:06]} 38. Ke4 {[%emt 0:00:17]} g4 {[%emt 0:00:35]} 39. fxg4 {[%emt 0:00:23]} f3 {[%emt 0:00:16]} 40. Kxf3 {[%emt 0:00:13]} Kc6 {[%emt 0:00:09]} 41. g5 {[%emt 0:15:06]} Kd6 {[%emt 0:15:04]} 42. Rxb5 {[%emt 0:00:18]} Kc6 {[%emt 0:00:12]} 43. Rf5 {[%emt 0:00:08]} Kd6 {[%emt 0:00:10]} 44. Rf4 {[%emt 0:00:08]} Ke5 {[%emt 0:00:07]} 45. g6 {[%emt 0:00:08]} Ke6 {[%emt 0:00:06]} 46. g7 {[%emt 0:00:05]} Kd5 {[%emt 0:00:07]} 47. g8=Q+ {[%emt 0:00:11]} Kc6 {[%emt 0:00:11]} 48. Qg5 {[%emt 0:00:11]} Kd7 {[%emt 0:00:08]} 49. Qg6 {[%emt 0:00:14]} 1-0

[Event "GER-ch Youth-U10 2022"]
[Site "Willingen"]
[Date "2022.06.10"]
[Round "9.17"]
[White "Chua, Daniel James"]
[Black "Yao, Haiyang"]
[Result "1-0"]
[ECO "C36"]
[WhiteElo "1314"]
[BlackElo "1098"]
[Annotator "NA RC COMBH"]
[PlyCount "63"]
[EventDate "2022.06.05"]
[EventType "swiss"]
[EventRounds "11"]
[EventCountry "GER"]
[SourceTitle "playchess.com"]
[Source "ChessBase"]
[SourceQuality "1"]
[TimeControl "40/4500+30:900+30"]

1. e4 {[%emt 0:00:21]} e5 {[%emt 0:00:07]} 2. f4 {[%emt 0:00:03]} d5 {[%emt 0:00:08]} 3. exd5 {[%emt 0:00:13]} exf4 {[%emt 0:00:11]} 4. Nf3 {[%emt 0:00:05]} Nf6 {[%emt 0:01:12]} 5. Bc4 {[%emt 0:00:32]} Bc5 {[%emt 0:00:32]} 6. d4 {[%emt 0:00:07]} Be7 {[%emt 0:00:28]} 7. O-O {[%emt 0:00:48]} O-O {[%emt 0:00:18]} 8. Nc3 {[%emt 0:00:15]} Bg4 {[%emt 0:00:29]} 9. Bxf4 {[%emt 0:00:25]} Nbd7 {[%emt 0:01:11]} 10. h3 {[%emt 0:00:27]} Bh5 {[%emt 0:00:14]} 11. g4 {[%emt 0:05:18]} Bg6 {[%emt 0:00:28]} 12. Nb5 {[%emt 0:00:56]} c6 {[%emt 0:00:45]} 13. Nc7 {[%emt 0:01:09]} Rc8 {[%emt 0:00:27]} 14. d6 {[%emt 0:00:10]} Nd5 {[%emt 0:01:30]} 15. dxe7 {[%emt 0:00:50]} Nxe7 {[%emt 0:00:18]} 16. Re1 {[%emt 0:00:26]} Nd5 {[%emt 0:00:21]} 17. Nxd5 {[%emt 0:00:45]} cxd5 {[%emt 0:00:13]} 18. Bxd5 {[%emt 0:00:01]} Bxc2 {[%emt 0:00:38]} 19. Qe2 {[%emt 0:00:17]} Qb6 {[%emt 0:01:00]} 20. Rac1 {[%emt 0:00:58]} Ba4 {[%emt 0:00:20]} 21. Rxc8 {[%emt 0:01:16]} Rxc8 {[%emt 0:00:08]} 22. Qe7 {[%emt 0:03:00]} Qg6 {[%emt 0:03:27]} 23. b3 {[%emt 0:00:00]} Bc6 {[%emt 0:00:27]} 24. Bxc6 {[%emt 0:00:00]} Qxc6 {[%emt 0:00:28]} 25. Rc1 {[%emt 0:00:00]} Qxc1+ {[%emt 0:01:36]} 26. Bxc1 {[%emt 0:00:00]} Rxc1+ {[%emt 0:00:05]} 27. Kg2 {[%emt 0:00:00]} Nf8 {[%emt 0:00:16]} 28. Ne5 {[%emt 0:00:00]} Rc2+ {[%emt 0:01:47]} 29. Kf3 {[%emt 0:01:27]} Rc8 {[%emt 0:00:25]} 30. Qxf7+ {[%emt 0:00:06]} Kh8 {[%emt 0:00:21]} 31. d5 {[%emt 0:00:26]} h6 {[%emt 0:01:14]} 32. d6 {[%emt 0:03:34]} 1-0

[Event "GER-ch Youth-U10 2022"]
[Site "Willingen"]
[Date "2022.06.10"]
[Round "9.19"]
[White "Fels, Mattis"]
[Black "Lanert, Theodor"]
[Result "0-1"]
[ECO "A43"]
[WhiteElo "1395"]
[BlackElo "1306"]
[Annotator "NA RC COMBH"]
[PlyCount "44"]
[EventDate "2022.06.05"]
[EventType "swiss"]
[EventRounds "11"]
[EventCountry "GER"]
[SourceTitle "playchess.com"]
[Source "ChessBase"]
[SourceQuality "1"]
[TimeControl "40/4500+30:900+30"]

1. d4 {[%emt 0:00:01]} Nf6 {[%emt 0:00:25]} 2. Nc3 {[%emt 0:00:21]} c5 {[%emt 0:00:08]} 3. d5 {[%emt 0:00:34]} d6 {[%emt 0:00:07]} 4. e4 {[%emt 0:00:11]} g6 {[%emt 0:00:07]} 5. Bf4 {[%emt 0:04:09]} Bg7 {[%emt 0:00:17]} 6. Qd2 {[%emt 0:00:22]} Qb6 {[%emt 0:00:30]} 7. Na4 {[%emt 0:06:43]} Qc7 {[%emt 0:01:29]} 8. Nf3 {[%emt 0:02:25]} Nxe4 {[%emt 0:01:18]} 9. Qe3 {[%emt 0:01:06]} Qa5+ {[%emt 0:00:49]} 10. Nd2 {[%emt 0:14:30]} Nxd2 {[%emt 0:01:06]} 11. Qxd2 {[%emt 0:00:06]} Qxa4 {[%emt 0:00:13]} 12. Qe3 {[%emt 0:00:37]} O-O {[%emt 0:00:14]} 13. O-O-O {[%emt 0:01:15]} Qxa2 {[%emt 0:00:25]} 14. Bh6 {[%emt 0:00:36]} Qxb2+ {[%emt 0:00:17]} 15. Kd2 {[%emt 0:00:07]} Qd4+ {[%emt 0:00:11]} 16. Bd3 {[%emt 0:00:27]} Qxe3+ {[%emt 0:00:20]} 17. Bxe3 {[%emt 0:00:08]} e6 {[%emt 0:00:26]} 18. dxe6 {[%emt 0:00:11]} Bxe6 {[%emt 0:00:08]} 19. Rb1 {[%emt 0:00:30]} c4 {[%emt 0:00:27]} 20. Be2 {[%emt 0:00:11]} c3+ {[%emt 0:00:19]} 21. Kd3 {[%emt 0:00:15]} d5 {[%emt 0:00:13]} 22. Rxb7 {[%emt 0:00:34]} Bf5# {[%emt 0:00:08]} 0-1

[Event "GER-ch Youth-U10 2022"]
[Site "Willingen"]
[Date "2022.06.10"]
[Round "9.20"]
[White "Hagn, Tobias"]
[Black "Menke, Raphael Wilhelm"]
[Result "1/2-1/2"]
[ECO "C47"]
[WhiteElo "1337"]
[BlackElo "1212"]
[Annotator "NA RC COMBH"]
[PlyCount "148"]
[EventDate "2022.06.05"]
[EventType "swiss"]
[EventRounds "11"]
[EventCountry "GER"]
[SourceTitle "playchess.com"]
[Source "ChessBase"]
[SourceQuality "1"]
[TimeControl "40/4500+30:900+30"]

1. e4 {[%emt 0:00:02]} e5 {[%emt 0:00:06]} 2. Nf3 {[%emt 0:00:07]} Nc6 {[%emt 0:00:06]} 3. d4 {[%emt 0:00:10]} exd4 {[%emt 0:00:08]} 4. Nxd4 {[%emt 0:00:12]} Nf6 {[%emt 0:00:14]} 5. Nc3 {[%emt 0:00:35]} Bb4 {[%emt 0:00:21]} 6. Nxc6 {[%emt 0:00:18]} bxc6 {[%emt 0:00:28]} 7. Bd3 {[%emt 0:00:42]} d6 {[%emt 0:02:27]} 8. O-O {[%emt 0:02:24]} h6 {[%emt 0:01:14]} 9. Re1 {[%emt 0:01:57]} Bg4 {[%emt 0:02:00]} 10. f3 {[%emt 0:00:32]} Be6 {[%emt 0:00:54]} 11. Bf4 {[%emt 0:07:02]} Qd7 {[%emt 0:04:53]} 12. Re2 {[%emt 0:04:36]} Bxc3 {[%emt 0:04:13]} 13. bxc3 {[%emt 0:00:33]} O-O {[%emt 0:01:08]} 14. Qe1 {[%emt 0:03:44]} Rfe8 {[%emt 0:05:35]} 15. Qh4 {[%emt 0:01:58]} Nh7 {[%emt 0:10:33]} 16. e5 {[%emt 0:10:13]} Bf5 {[%emt 0:02:40]} 17. Qg3 {[%emt 0:07:04]} Kh8 {[%emt 0:02:30]} 18. Rae1 {[%emt 0:07:51]} d5 {[%emt 0:03:37]} 19. Bxf5 {[%emt 0:08:00]} Qxf5 {[%emt 0:00:25]} 20. Qg4 {[%emt 0:00:31]} Qxg4 {[%emt 0:00:42]} 21. fxg4 {[%emt 0:00:14]} Re6 {[%emt 0:00:27]} 22. c4 {[%emt 0:01:23]} Rb8 {[%emt 0:01:27]} 23. cxd5 {[%emt 0:00:46]} cxd5 {[%emt 0:00:53]} 24. Rd1 {[%emt 0:00:51]} c6 {[%emt 0:02:41]} 25. Kf2 {[%emt 0:02:33]} g5 {[%emt 0:04:49]} 26. Bg3 {[%emt 0:01:24]} Kg7 {[%emt 0:02:50]} 27. Rd4 {[%emt 0:05:32]} Rb2 {[%emt 0:03:36]} 28. Ra4 {[%emt 0:02:02]} Rb7 {[%emt 0:01:09]} 29. Kf3 {[%emt 0:06:38]} Kg6 {[%emt 0:03:03]} 30. Bf2 {[%emt 0:01:37]} f6 {[%emt 0:02:55]} 31. Rxa7 {[%emt 0:00:59]} Rxa7 {[%emt 0:01:20]} 32. Bxa7 {[%emt 0:00:06]} fxe5 {[%emt 0:00:40]} 33. c4 {[%emt 0:00:42]} Nf6 {[%emt 0:02:46]} 34. h3 {[%emt 0:01:09]} Ne4 {[%emt 0:03:18]} 35. cxd5 {[%emt 0:00:52]} cxd5 {[%emt 0:02:55]} 36. Bb8 {[%emt 0:01:31]} Kf6 {[%emt 0:00:48]} 37. Ke3 {[%emt 0:01:35]} Ra6 {[%emt 0:00:50]} 38. Rb2 {[%emt 0:02:00]} Rc6 {[%emt 0:03:35]} 39. Ba7 {[%emt 0:02:58]} Nc3 {[%emt 0:00:50]} 40. Kd3 {[%emt 0:01:01]} Ra6 {[%emt 0:02:20]} 41. Kxc3 {[%emt 0:15:44]} Rxa7 {[%emt 0:15:22]} 42. Rb6+ {[%emt 0:00:08]} Kg7 {[%emt 0:01:15]} 43. Kb3 {[%emt 0:00:23]} Re7 {[%emt 0:02:21]} 44. Rd6 {[%emt 0:00:25]} d4 {[%emt 0:00:27]} 45. a4 {[%emt 0:00:38]} Rc7 {[%emt 0:02:22]} 46. a5 {[%emt 0:00:33]} Rc5 {[%emt 0:00:42]} 47. a6 {[%emt 0:00:16]} Ra5 {[%emt 0:00:19]} 48. Kc4 {[%emt 0:00:34]} Ra1 {[%emt 0:00:47]} 49. Kd5 {[%emt 0:00:38]} Ra5+ {[%emt 0:00:33]} 50. Ke4 {[%emt 0:00:11]} Ra1 {[%emt 0:00:18]} 51. Kxe5 {[%emt 0:00:08]} d3 {[%emt 0:00:34]} 52. Rxd3 {[%emt 0:00:13]} Rxa6 {[%emt 0:00:22]} 53. Rd7+ {[%emt 0:00:09]} Kh8 {[%emt 0:00:47]} 54. Rd6 {[%emt 0:00:27]} Ra2 {[%emt 0:00:40]} 55. Rxh6+ {[%emt 0:00:15]} Kg7 {[%emt 0:00:22]} 56. Rh5 {[%emt 0:00:28]} Kg6 {[%emt 0:00:32]} 57. g3 {[%emt 0:00:16]} Rg2 {[%emt 0:01:24]} 58. h4 {[%emt 0:01:32]} gxh4 {[%emt 0:00:17]} 59. Rxh4 {[%emt 0:00:31]} Rxg3 {[%emt 0:00:14]} 60. Kf4 {[%emt 0:00:10]} Ra3 {[%emt 0:00:17]} 61. Rh5 {[%emt 0:00:29]} Ra4+ {[%emt 0:00:29]} 62. Kg3 {[%emt 0:00:12]} Ra3+ {[%emt 0:00:22]} 63. Kh4 {[%emt 0:00:07]} Ra1 {[%emt 0:00:23]} 64. Rb5 {[%emt 0:01:37]} Rh1+ {[%emt 0:00:10]} 65. Kg3 {[%emt 0:00:29]} Rg1+ {[%emt 0:00:22]} 66. Kf3 {[%emt 0:00:28]} Rf1+ {[%emt 0:01:05]} 67. Kg2 {[%emt 0:00:18]} Rf4 {[%emt 0:00:19]} 68. Kg3 {[%emt 0:00:33]} Rf1 {[%emt 0:00:49]} 69. Rb6+ {[%emt 0:00:36]} Kg5 {[%emt 0:00:44]} 70. Rb8 {[%emt 0:00:20]} Rg1+ {[%emt 0:00:29]} 71. Kf3 {[%emt 0:00:11]} Rf1+ {[%emt 0:00:17]} 72. Kg2 {[%emt 0:00:16]} Rf4 {[%emt 0:00:46]} 73. Kh3 {[%emt 0:00:07]} Rf3+ {[%emt 0:00:21]} 74. Kg2 {[%emt 0:00:06]} Rf4 {[%emt 0:00:57]} 1/2-1/2

[Event "GER-ch Youth-U10 2022"]
[Site "Willingen"]
[Date "2022.06.10"]
[Round "9.21"]
[White "Wagener, Nicolas"]
[Black "Moskalenko, Michael"]
[Result "0-1"]
[ECO "B01"]
[WhiteElo "1315"]
[BlackElo "1266"]
[Annotator "NA RC COMBH"]
[PlyCount "54"]
[EventDate "2022.06.05"]
[EventType "swiss"]
[EventRounds "11"]
[EventCountry "GER"]
[SourceTitle "playchess.com"]
[Source "ChessBase"]
[SourceQuality "1"]
[TimeControl "40/4500+30:900+30"]

1. e4 {[%emt 0:00:11]} d5 {[%emt 0:00:00]} 2. exd5 {[%emt 0:00:43]} Qxd5 {[%emt 0:00:00]} 3. Nc3 {[%emt 0:00:12]} Qa5 {[%emt 0:00:00]} 4. d4 {[%emt 0:00:29]} Nf6 {[%emt 0:00:02]} 5. Bd2 {[%emt 0:00:14]} c6 {[%emt 0:00:07]} 6. Nf3 {[%emt 0:00:16]} Qc7 {[%emt 0:00:22]} 7. Bc4 {[%emt 0:00:32]} Bg4 {[%emt 0:00:48]} 8. h3 {[%emt 0:00:18]} Bh5 {[%emt 0:01:08]} 9. g4 {[%emt 0:00:32]} Bg6 {[%emt 0:00:29]} 10. Ne5 {[%emt 0:00:25]} Nbd7 {[%emt 0:01:32]} 11. h4 {[%emt 0:00:21]} Nxe5 {[%emt 0:01:00]} 12. dxe5 {[%emt 0:00:09]} Qxe5+ {[%emt 0:00:24]} 13. Be3 {[%emt 0:00:20]} h5 {[%emt 0:01:11]} 14. g5 {[%emt 0:00:37]} Ne4 {[%emt 0:01:26]} 15. Qe2 {[%emt 0:01:05]} Nxc3 {[%emt 0:01:13]} 16. Qf3 {[%emt 0:02:34]} Ne4 {[%emt 0:00:40]} 17. O-O-O {[%emt 0:00:18]} Nd6 {[%emt 0:03:35]} 18. Bf4 {[%emt 0:00:40]} Qe4 {[%emt 0:03:28]} 19. Qb3 {[%emt 0:01:05]} Qxf4+ {[%emt 0:00:40]} 20. Kb1 {[%emt 0:00:11]} Qxc4 {[%emt 0:00:52]} 21. Qe3 {[%emt 0:00:19]} Bxc2+ {[%emt 0:00:22]} 22. Ka1 {[%emt 0:00:05]} Bxd1 {[%emt 0:00:10]} 23. Rxd1 {[%emt 0:00:05]} e6 {[%emt 0:00:16]} 24. g6 {[%emt 0:00:18]} f6 {[%emt 0:00:47]} 25. Rd4 {[%emt 0:00:13]} Qf1+ {[%emt 0:00:18]} 26. Qe1 {[%emt 0:00:12]} Qxe1+ {[%emt 0:00:05]} 27. Rd1 {[%emt 0:00:08]} Qxd1# {[%emt 0:00:04]} 0-1

[Event "GER-ch Youth-U10 2022"]
[Site "Willingen"]
[Date "2022.06.10"]
[Round "9.23"]
[White "Hellriegel, Hannes"]
[Black "Leonhardt, Max"]
[Result "1/2-1/2"]
[ECO "C50"]
[WhiteElo "1335"]
[BlackElo "1114"]
[Annotator "NA RC COMBH"]
[PlyCount "88"]
[EventDate "2022.06.05"]
[EventType "swiss"]
[EventRounds "11"]
[EventCountry "GER"]
[SourceTitle "playchess.com"]
[Source "ChessBase"]
[SourceQuality "1"]
[TimeControl "40/4500+30:900+30"]

1. e4 {[%emt 0:00:01]} e5 {[%emt 0:00:12]} 2. Nf3 {[%emt 0:00:06]} Nc6 {[%emt 0:00:09]} 3. Bc4 {[%emt 0:00:05]} Bc5 {[%emt 0:00:11]} 4. Nc3 {[%emt 0:00:08]} d6 {[%emt 0:00:12]} 5. Na4 {[%emt 0:00:13]} Bb6 {[%emt 0:00:26]} 6. d3 {[%emt 0:00:37]} Bg4 {[%emt 0:00:12]} 7. h3 {[%emt 0:00:21]} Bh5 {[%emt 0:00:10]} 8. Nxb6 {[%emt 0:02:20]} axb6 {[%emt 0:00:13]} 9. Be3 {[%emt 0:01:34]} Nf6 {[%emt 0:00:19]} 10. Bg5 {[%emt 0:03:11]} O-O {[%emt 0:00:13]} 11. Bxf6 {[%emt 0:00:51]} Qxf6 {[%emt 0:01:15]} 12. c3 {[%emt 0:01:12]} Rfe8 {[%emt 0:01:02]} 13. a4 {[%emt 0:05:06]} Qf4 {[%emt 0:01:52]} 14. Qe2 {[%emt 0:06:46]} Na5 {[%emt 0:04:07]} 15. b4 {[%emt 0:01:42]} Nxc4 {[%emt 0:00:13]} 16. dxc4 {[%emt 0:00:32]} c6 {[%emt 0:01:19]} 17. Qe3 {[%emt 0:00:45]} Qxe3+ {[%emt 0:01:00]} 18. fxe3 {[%emt 0:00:13]} Bg6 {[%emt 0:01:31]} 19. Nd2 {[%emt 0:01:03]} b5 {[%emt 0:00:33]} 20. a5 {[%emt 0:03:28]} bxc4 {[%emt 0:00:55]} 21. Ke2 {[%emt 0:01:03]} d5 {[%emt 0:00:20]} 22. Kf3 {[%emt 0:01:04]} Red8 {[%emt 0:00:36]} 23. exd5 {[%emt 0:01:41]} cxd5 {[%emt 0:00:13]} 24. Rhe1 {[%emt 0:00:55]} f6 {[%emt 0:00:41]} 25. e4 {[%emt 0:01:23]} dxe4+ {[%emt 0:01:25]} 26. Nxe4 {[%emt 0:00:33]} Bxe4+ {[%emt 0:00:19]} 27. Kxe4 {[%emt 0:00:42]} Kf7 {[%emt 0:00:24]} 28. g4 {[%emt 0:00:29]} Rd3 {[%emt 0:00:16]} 29. Re3 {[%emt 0:00:35]} Rxe3+ {[%emt 0:00:24]} 30. Kxe3 {[%emt 0:00:13]} Rd8 {[%emt 0:00:16]} 31. b5 {[%emt 0:01:32]} Rd3+ {[%emt 0:00:12]} 32. Ke2 {[%emt 0:00:12]} Rd8 {[%emt 0:00:45]} 33. a6 {[%emt 0:00:21]} bxa6 {[%emt 0:00:06]} 34. Rxa6 {[%emt 0:00:32]} Rb8 {[%emt 0:00:23]} 35. b6 {[%emt 0:00:22]} Ke7 {[%emt 0:00:09]} 36. Ra7+ {[%emt 0:00:19]} Kd6 {[%emt 0:00:15]} 37. Rxg7 {[%emt 0:00:24]} Rxb6 {[%emt 0:00:27]} 38. Rxh7 {[%emt 0:00:19]} Rb3 {[%emt 0:00:47]} 39. Kd2 {[%emt 0:00:21]} e4 {[%emt 0:00:18]} 40. Rh8 {[%emt 0:00:50]} e3+ {[%emt 0:00:30]} 41. Kxe3 {[%emt 0:15:10]} Rxc3+ {[%emt 0:15:07]} 42. Kd4 {[%emt 0:00:41]} Rc1 {[%emt 0:00:19]} 43. Rc8 {[%emt 0:01:05]} Rd1+ {[%emt 0:02:22]} 44. Kc3 {[%emt 0:03:13]} Rh1 {[%emt 0:00:21]} 1/2-1/2

[Event "GER-ch Youth-U10 2022"]
[Site "Willingen"]
[Date "2022.06.10"]
[Round "9.24"]
[White "Antonius, Richard-Malte"]
[Black "Svanidze, Alexander"]
[Result "0-1"]
[ECO "D02"]
[WhiteElo "1106"]
[BlackElo "1348"]
[Annotator "NA RC COMBH"]
[PlyCount "104"]
[EventDate "2022.06.05"]
[EventType "swiss"]
[EventRounds "11"]
[EventCountry "GER"]
[SourceTitle "playchess.com"]
[Source "ChessBase"]
[SourceQuality "1"]
[TimeControl "40/4500+30:900+30"]

1. d4 {[%emt 0:00:01]} Nf6 {[%emt 0:00:05]} 2. Nf3 {[%emt 0:00:05]} e6 {[%emt 0:00:06]} 3. c3 {[%emt 0:00:05]} d5 {[%emt 0:00:29]} 4. Bf4 {[%emt 0:00:07]} c5 {[%emt 0:00:28]} 5. e3 {[%emt 0:00:06]} Nc6 {[%emt 0:00:16]} 6. Bd3 {[%emt 0:00:10]} c4 {[%emt 0:00:40]} 7. Bc2 {[%emt 0:00:07]} Bd6 {[%emt 0:00:06]} 8. Bxd6 {[%emt 0:00:10]} Qxd6 {[%emt 0:00:13]} 9. Nbd2 {[%emt 0:00:17]} O-O {[%emt 0:00:13]} 10. O-O {[%emt 0:00:06]} a6 {[%emt 0:00:20]} 11. Re1 {[%emt 0:00:17]} b5 {[%emt 0:00:14]} 12. a3 {[%emt 0:00:05]} Bb7 {[%emt 0:00:06]} 13. e4 {[%emt 0:00:18]} dxe4 {[%emt 0:00:07]} 14. Nxe4 {[%emt 0:00:08]} Nxe4 {[%emt 0:00:08]} 15. Bxe4 {[%emt 0:00:55]} Rad8 {[%emt 0:01:16]} 16. Bc2 {[%emt 0:01:19]} Rfe8 {[%emt 0:00:33]} 17. Qd2 {[%emt 0:05:20]} h6 {[%emt 0:01:51]} 18. Rad1 {[%emt 0:01:19]} e5 {[%emt 0:03:42]} 19. Qe2 {[%emt 0:01:35]} e4 {[%emt 0:03:34]} 20. Nd2 {[%emt 0:06:28]} f5 {[%emt 0:03:15]} 21. Qh5 {[%emt 0:01:01]} Qf6 {[%emt 0:03:56]} 22. Nf1 {[%emt 0:00:56]} Rf8 {[%emt 0:11:19]} 23. Ng3 {[%emt 0:04:59]} Na5 {[%emt 0:03:47]} 24. Rd2 {[%emt 0:08:16]} Rd5 {[%emt 0:01:08]} 25. Qd1 {[%emt 0:01:16]} Re8 {[%emt 0:01:17]} 26. Nh5 {[%emt 0:00:35]} Qg5 {[%emt 0:01:37]} 27. Ng3 {[%emt 0:01:00]} Nc6 {[%emt 0:05:03]} 28. f3 {[%emt 0:02:56]} e3 {[%emt 0:04:50]} 29. Rde2 {[%emt 0:00:30]} f4 {[%emt 0:02:38]} 30. Ne4 {[%emt 0:00:19]} Qe7 {[%emt 0:02:52]} 31. Nf2 {[%emt 0:05:30]} exf2+ {[%emt 0:01:39]} 32. Kxf2 {[%emt 0:00:10]} Qh4+ {[%emt 0:00:04]} 33. Kf1 {[%emt 0:00:55]} Rxe2 {[%emt 0:03:51]} 34. Qxe2 {[%emt 0:00:10]} Qh5 {[%emt 0:03:38]} 35. Qe6+ {[%emt 0:00:24]} Qf7 {[%emt 0:00:35]} 36. Qe4 {[%emt 0:00:25]} g5 {[%emt 0:02:31]} 37. Qe2 {[%emt 0:03:03]} Rd7 {[%emt 0:01:24]} 38. Qd2 {[%emt 0:03:52]} Re7 {[%emt 0:01:01]} 39. Rd1 {[%emt 0:00:22]} Na5 {[%emt 0:00:47]} 40. Qf2 {[%emt 0:00:34]} Nb3 {[%emt 0:02:17]} 41. h3 {[%emt 0:15:25]} Re3 {[%emt 0:18:01]} 42. Re1 {[%emt 0:00:30]} Qe7 {[%emt 0:00:42]} 43. Rxe3 {[%emt 0:00:30]} fxe3 {[%emt 0:00:27]} 44. Qe2 {[%emt 0:00:16]} Nd2+ {[%emt 0:01:13]} 45. Ke1 {[%emt 0:00:20]} Qe6 {[%emt 0:01:14]} 46. Kd1 {[%emt 0:01:49]} h5 {[%emt 0:01:17]} 47. Ke1 {[%emt 0:00:16]} g4 {[%emt 0:00:07]} 48. fxg4 {[%emt 0:02:40]} hxg4 {[%emt 0:01:07]} 49. hxg4 {[%emt 0:00:22]} Qe7 {[%emt 0:00:45]} 50. Bd1 {[%emt 0:03:35]} Qh4+ {[%emt 0:01:28]} 51. g3 {[%emt 0:00:29]} Qxg3+ {[%emt 0:00:13]} 52. Qf2 {[%emt 0:00:13]} Qxf2# {[%emt 0:00:06]} 0-1

[Event "GER-ch Youth-U10 2022"]
[Site "Willingen"]
[Date "2022.06.10"]
[Round "9.25"]
[White "Rinke, Alexander"]
[Black "Li, Joshua"]
[Result "0-1"]
[ECO "C02"]
[WhiteElo "1292"]
[BlackElo "1599"]
[Annotator "NA RC COMBH"]
[PlyCount "96"]
[EventDate "2022.06.05"]
[EventType "swiss"]
[EventRounds "11"]
[EventCountry "GER"]
[SourceTitle "playchess.com"]
[Source "ChessBase"]
[SourceQuality "1"]
[TimeControl "40/4500+30:900+30"]

1. e4 {[%emt 0:00:02]} c5 {[%emt 0:00:03]} 2. Nf3 {[%emt 0:00:11]} e6 {[%emt 0:00:07]} 3. c3 {[%emt 0:00:09]} Nc6 {[%emt 0:03:23]} 4. d4 {[%emt 0:02:22]} cxd4 {[%emt 0:02:56]} 5. cxd4 {[%emt 0:02:00]} d5 {[%emt 0:07:26]} 6. e5 {[%emt 0:04:18]} Qb6 {[%emt 0:00:51]} 7. a3 {[%emt 0:08:39]} Nge7 {[%emt 0:03:11]} 8. b4 {[%emt 0:02:59]} Nf5 {[%emt 0:00:40]} 9. Bb2 {[%emt 0:00:14]} a5 {[%emt 0:00:17]} 10. b5 {[%emt 0:00:39]} Be7 {[%emt 0:02:21]} 11. Ra2 {[%emt 0:17:20]} Na7 {[%emt 0:03:28]} 12. Nc3 {[%emt 0:00:30]} Bd7 {[%emt 0:01:51]} 13. a4 {[%emt 0:01:30]} O-O {[%emt 0:00:23]} 14. Bd3 {[%emt 0:00:10]} g6 {[%emt 0:01:50]} 15. Bxf5 {[%emt 0:01:14]} gxf5 {[%emt 0:02:41]} 16. Bc1 {[%emt 0:01:27]} Be8 {[%emt 0:04:05]} 17. Bh6 {[%emt 0:00:57]} Bb4 {[%emt 0:00:58]} 18. Rc2 {[%emt 0:00:47]} Bxb5 {[%emt 0:01:02]} 19. axb5 {[%emt 0:04:32]} Rfc8 {[%emt 0:00:50]} 20. Qd2 {[%emt 0:00:50]} Qd8 {[%emt 0:02:31]} 21. Bg5 {[%emt 0:01:19]} Rxc3 {[%emt 0:05:41]} 22. Rxc3 {[%emt 0:00:31]} Nxb5 {[%emt 0:03:58]} 23. Bxd8 {[%emt 0:00:38]} Bxc3 {[%emt 0:00:49]} 24. Qxc3 {[%emt 0:00:10]} Nxc3 {[%emt 0:00:42]} 25. Be7 {[%emt 0:00:39]} a4 {[%emt 0:01:16]} 26. Kd2 {[%emt 0:00:33]} Nb5 {[%emt 0:01:17]} 27. Rb1 {[%emt 0:02:25]} a3 {[%emt 0:01:15]} 28. Ra1 {[%emt 0:00:42]} Ra4 {[%emt 0:02:31]} 29. Bc5 {[%emt 0:00:33]} Ra6 {[%emt 0:04:06]} 30. Kc2 {[%emt 0:01:03]} b6 {[%emt 0:03:45]} 31. Bd6 {[%emt 0:02:01]} Nxd6 {[%emt 0:00:12]} 32. exd6 {[%emt 0:00:08]} Kf8 {[%emt 0:00:11]} 33. Kb3 {[%emt 0:04:02]} b5 {[%emt 0:01:12]} 34. Rxa3 {[%emt 0:00:10]} Rxd6 {[%emt 0:00:43]} 35. Kb4 {[%emt 0:00:11]} Rc6 {[%emt 0:00:12]} 36. Rc3 {[%emt 0:00:41]} Rc4+ {[%emt 0:00:37]} 37. Rxc4 {[%emt 0:01:30]} bxc4 {[%emt 0:00:08]} 38. Ne5 {[%emt 0:00:21]} Ke7 {[%emt 0:01:03]} 39. Nxc4 {[%emt 0:01:21]} dxc4 {[%emt 0:00:06]} 40. Kxc4 {[%emt 0:00:04]} Kd6 {[%emt 0:00:26]} 41. f4 {[%emt 0:15:11]} h5 {[%emt 0:15:17]} 42. g3 {[%emt 0:01:31]} Kc6 {[%emt 0:00:49]} 43. d5+ {[%emt 0:01:40]} exd5+ {[%emt 0:00:14]} 44. Kd4 {[%emt 0:00:09]} f6 {[%emt 0:00:50]} 45. h3 {[%emt 0:00:05]} Kd6 {[%emt 0:00:10]} 46. h4 {[%emt 0:00:06]} Kc6 {[%emt 0:00:12]} 47. Kd3 {[%emt 0:00:45]} Kc5 {[%emt 0:00:28]} 48. Ke3 {[%emt 0:00:46]} Kc4 {[%emt 0:00:43]} 0-1